{"text_format":"3","workbook":"xlsx","n_sheets":4,"sheets":["Mulai","Pengeluaran","Pendapatan","Ringkasan"],"not_rendered":{"charts":1,"defined_names":2},"read":"whole","date_system":"1900"}

{"sheet":"Mulai","index":0,"n_rows":8,"n_cols":2,"rows_kept":8}
[null,"TENTANG TEMPLAT INI"]
[null,"Gunakan buku kerja Anggaran Acara ini untuk mencatat Pengeluaran yang dikeluarkan dan Pendapatan yang didapatkan sepanjang acara."]
[null,"Isi Nama Acara dan masukkan detail dalam tabel di lembar kerja Pengeluaran dan lembar kerja Pendapatan."]
[null,"Total Pengeluaran dan Total Pendapatan dihitung secara otomatis."]
[null,"Ringkasan Laba & Rugi serta Bagan diperbarui secara otomatis dalam lembar kerja Ringkasan."]
[null,"Catatan: "]
[null,"Instruksi tambahan telah tersedia di kolom A dalam setiap lembar kerja. Teks ini sengaja disembunyikan. Untuk menghapus teks, pilih kolom A, lalu pilih HAPUS. Untuk memperlihatkan teks, pilih kolom A, lalu ubah warna font."]
[null,"Untuk mempelajari selengkapnya tentang tabel, tekan SHIFT lalu F10 dalam tabel, pilih opsi TABEL, lalu pilih TEKS ALTERNATIF."]

{"sheet":"Pengeluaran","index":1,"n_rows":33,"n_cols":8,"rows_kept":33,"merged":[[0,5,0,7],[1,1,1,7],[2,6,2,7]]}
["Masukkan Estimasi dan pengeluaran Aktual untuk setiap kategori dalam tabel masing-masing di lembar kerja ini. Total Pengeluaran dihitung secara otomatis. Instruksi bermanfaat tentang cara menggunakan lembar kerja ada pada sel-sel dalam kolom ini. Tekan panah bawah untuk memulai."]
["Masukkan Nama Acara dalam sel di sebelah kanan untuk mengustomisasi judul lembar kerja ini dan yang lain.","Anggaran Acara untuk \nNama Acara"]
["Label Pengeluaran berada dalam sel G3.",{"$nulls":5}," Pengeluaran"]
["Label Estimasi berada dalam sel G4 dan label Aktual di sel H4.",{"$nulls":5},"Estimasi","Aktual"]
["Label Total Pengeluaran berada dalam sel di sebelah kanan. Estimasi Total Pengeluaran dihitung secara otomatis di sel G5. Total Pengeluaran Aktual dan bilah data yang menggambarkan Total Pengeluaran Aktual diperbarui secara otomatis di sel H5. Instruksi berikutnya berada dalam sel A7.","Total Pengeluaran",{"$nulls":4},{"$f":"SUM(C12,C20,C26,C33,G12,G20,G25)","v":{"v":1145,"d":"Rp1,145.00"}},{"$f":"SUM(D12,D20,D26,D33,H12,H20,H25)","v":{"v":395,"d":"Rp395.00"}}]
[]
["Masukkan Pengeluaran Lokasi di tabel yang dimulai dari sel di sebelah kanan dan Pengeluaran Makanan Ringan dalam tabel yang dimulai dari sel F7. Instruksi berikutnya berada dalam sel A14.","Lokasi","Estimasi","Aktual",null,"Makanan Ringan","Estimasi","Aktual"]
[null,"Biaya ruangan dan aula",{"v":500,"d":"Rp500.00"},{"v":250,"d":"Rp250.00"},null,"Makanan"]
[null,"Staf lokasi",{"v":400,"d":"Rp400.00"},{"v":50,"d":"Rp50.00"},null,"Minuman"]
[null,"Peralatan",{"$nulls":3},"Taplak"]
[null,"Meja dan kursi",{"$nulls":3},"Staf dan tip"]
[null,"Total",{"$f":"SUBTOTAL(109,PengeluaranLokasi[Estimasi])","v":{"v":900,"d":"Rp900.00"}},{"$f":"SUBTOTAL(109,PengeluaranLokasi[Aktual])","v":{"v":300,"d":"Rp300.00"}},null,"Total",{"$f":"SUBTOTAL(109,PengeluaranMakananRingan[Estimasi])","v":{"v":0,"d":"Rp0.00"}},{"$f":"SUBTOTAL(109,PengeluaranMakananRingan[Aktual])","v":{"v":0,"d":"Rp0.00"}}]
[]
["Masukkan Pengeluaran Dekorasi dalam tabel yang dimulai dari sel di sebelah kanan dan Pengeluaran Program di tabel yang dimulai di sel F14. Instruksi berikutnya berada dalam sel A22.","Dekorasi","Estimasi","Aktual",null,"Program","Estimasi","Aktual"]
[null,"Bunga",{"v":200,"d":"Rp200.00"},{"v":50,"d":"Rp50.00"},null,"Hiburan"]
[null,"Lilin",{"$nulls":3},"Pembicara"]
[null,"Lampu",{"$nulls":3},"Perjalanan"]
[null,"Balon",{"$nulls":3},"Hotel"]
[null,"Perlengkapan kertas",{"$nulls":3},"Lainnya"]
[null,"Total",{"$f":"SUBTOTAL(109,PengeluaranDekorasi[Estimasi])","v":{"v":200,"d":"Rp200.00"}},{"$f":"SUBTOTAL(109,PengeluaranDekorasi[Aktual])","v":{"v":50,"d":"Rp50.00"}},null,"Total",{"$f":"SUBTOTAL(109,PengeluaranProgram[Estimasi])","v":{"v":0,"d":"Rp0.00"}},{"$f":"SUBTOTAL(109,PengeluaranProgram[Aktual])","v":{"v":0,"d":"Rp0.00"}}]
[]
["Masukkan Pengeluaran Publikasi dalam tabel yang dimulai dari sel di sebelah kanan dan Pengeluaran Hadiah di tabel yang dimulai di sel F22. Instruksi berikutnya berada dalam sel A28.","Publikasi","Estimasi","Aktual",null,"Hadiah","Estimasi","Aktual"]
[null,"Karya grafis",{"v":45,"d":"Rp45.00"},{"v":45,"d":"Rp45.00"},null,"Pita/Plakat/Piala"]
[null,"Fotokopi/Percetakan",{"$nulls":3},"Hadiah"]
[null,"Ongkos kirim",{"$nulls":3},"Total",{"$f":"SUBTOTAL(109,PengeluaranHadiah[Estimasi])","v":{"v":0,"d":"Rp0.00"}},{"$f":"SUBTOTAL(109,PengeluaranHadiah[Aktual])","v":{"v":0,"d":"Rp0.00"}}]
[null,"Total",{"$f":"SUBTOTAL(109,PengeluaranPublikasi[Estimasi])","v":{"v":45,"d":"Rp45.00"}},{"$f":"SUBTOTAL(109,PengeluaranPublikasi[Aktual])","v":{"v":45,"d":"Rp45.00"}}]
[]
["Masukkan Pengeluaran Lain-lain dalam tabel yang dimulai dari sel di sebelah kanan.","Lain-lain","Estimasi","Aktual"]
[null,"Telepon"]
[null,"Transportasi"]
[null,"Perlengkapan alat tulis"]
[null,"Layanan faks"]
[null,"Total",{"$f":"SUBTOTAL(109,PengeluaranLainlain[Estimasi])","v":{"v":0,"d":"Rp0.00"}},{"$f":"SUBTOTAL(109,PengeluaranLainlain[Aktual])","v":{"v":0,"d":"Rp0.00"}}]

{"sheet":"Pendapatan","index":2,"n_rows":30,"n_cols":7,"rows_kept":30,"merged":[[1,1,1,6],[2,5,2,6]]}
["Masukkan Estimasi pendapatan dan pendapatan Aktual dari setiap kategori dalam tabel masing-masing dalam lembar kerja ini. Total Pendapatan dihitung secara otomatis. Instruksi bermanfaat tentang cara menggunakan lembar kerja ada pada sel-sel dalam kolom ini. Tekan panah bawah untuk memulai."]
["Nama Acara diperbarui secara otomatis dalam sel di sebelah kanan.",{"$f":"Pengeluaran!B2","v":"Anggaran Acara untuk \nNama Acara"}]
["Label Pendapatan berada dalam sel F3.",{"$nulls":4}," Pendapatan"]
["Label Estimasi berada dalam sel F4 dan label Aktual di sel G4.",{"$nulls":4},"Estimasi","Aktual"]
["Label Total Pendapatan berada dalam sel di sebelah kanan. Total Estimasi Pendapatan dihitung secara otomatis dalam sel F5. Total Pendapatan Aktual dan bilah data yang menggambarkan Total Pendapatan Aktual diperbarui secara otomatis dalam sel G5.","Total Pendapatan",{"$nulls":3},{"$f":"SUM(KarcisMasuk[[#Totals],[Estimasi Total]],IklanDalamAcara[[#Totals],[Estimasi Total]],PesertaPameranDanVendor[[#Totals],[Estimasi Total]],PenjualanItem[[#Totals],[Estimasi Total]])","v":{"v":1936,"d":"Rp1,936.00"}},{"$f":"SUM(KarcisMasuk[[#Totals],[Total Aktual]],IklanDalamAcara[[#Totals],[Total Aktual]],PesertaPameranDanVendor[[#Totals],[Total Aktual]],PenjualanItem[[#Totals],[Total Aktual]])","v":{"v":1831,"d":"Rp1,831.00"}}]
["Label Karcis Masuk berada dalam sel di sebelah kanan.","Karcis Masuk"]
["Masukkan jumlah Estimasi tiket masuk dan tiket masuk Aktual dengan harga tiket dalam tabel yang dimulai dalam sel di sebelah kanan. Estimasi Pendapatan dan Pendapatan Aktual dari Karcis Masuk dihitung secara otomatis. Instruksi berikutnya berada dalam sel A12.","Estimasi","Aktual","Tipe","Harga","Estimasi Total","Total Aktual"]
[null,300,278,"Dewasa @",{"v":5,"d":"Rp5.00"},{"$f":"B8*E8","v":{"v":1500,"d":"Rp1,500.00"}},{"$f":"C8*E8","v":{"v":1390,"d":"Rp1,390.00"}}]
[null,197,195,"Anak-anak @",{"v":2,"d":"Rp2.00"},{"$f":"B9*E9","v":{"v":394,"d":"Rp394.00"}},{"$f":"C9*E9","v":{"v":390,"d":"Rp390.00"}}]
[null,42,51,"Lainnya @",{"v":1,"d":"Rp1.00"},{"v":42,"d":"Rp42.00"},{"v":51,"d":"Rp51.00"}]
[null," ",{"$nulls":3},{"$f":"SUBTOTAL(109,KarcisMasuk[Estimasi Total])","v":{"v":1936,"d":"Rp1,936.00"}},{"$f":"SUBTOTAL(109,KarcisMasuk[Total Aktual])","v":{"v":1831,"d":"Rp1,831.00"}}]
["Iklan dalam label program berada dalam sel di sebelah kanan.","Iklan dalam program"]
["Masukkan jumlah Estimasi dan Iklan Aktual dalam program dan tarif Iklan dalam tabel yang dimulai dari sel di sebelah kanan. Estimasi Pendapatan dan Pendapatan Aktual dari Iklan dihitung secara otomatis. Instruksi berikutnya berada dalam sel A18.","Estimasi","Aktual","Tipe","Harga","Estimasi Total","Total Aktual"]
[{"$nulls":3},"Sampul @",null,{"$f":"B14*E14","v":{"v":0,"d":"Rp0.00"}},{"$f":"C14*E14","v":{"v":0,"d":"Rp0.00"}}]
[{"$nulls":3},"Setengah halaman @",null,{"$f":"B15*E15","v":{"v":0,"d":"Rp0.00"}},{"$f":"C15*E15","v":{"v":0,"d":"Rp0.00"}}]
[{"$nulls":3},"Seperempat halaman @",null,{"v":0,"d":"Rp0.00"},{"v":0,"d":"Rp0.00"}]
[null," ",{"$nulls":3},{"$f":"SUBTOTAL(109,IklanDalamAcara[Estimasi Total])","v":{"v":0,"d":"Rp0.00"}},{"$f":"SUBTOTAL(109,IklanDalamAcara[Total Aktual])","v":{"v":0,"d":"Rp0.00"}}]
["Label Peserta Pameran atau Vendor berada dalam sel di sebelah kanan.","Peserta pameran/vendor"]
["Masukkan jumlah Estimasi peserta pameran dan vendor, jumlah Aktual peserta pameran dan vendor, serta tarif stan dalam tabel yang dimulai dari sel di sebelah kanan. Estimasi Pendapatan dan Pendapatan Aktual dihitung secara otomatis. Instruksi berikutnya berada dalam sel A24.","Estimasi","Aktual","Tipe","Harga","Estimasi Total","Total Aktual"]
[{"$nulls":3},"Stan besar @",null,{"$f":"B20*E20","v":{"v":0,"d":"Rp0.00"}},{"$f":"C20*E20","v":{"v":0,"d":"Rp0.00"}}]
[{"$nulls":3},"Stan sedang @",null,{"$f":"B21*E21","v":{"v":0,"d":"Rp0.00"}},{"$f":"C21*E21","v":{"v":0,"d":"Rp0.00"}}]
[{"$nulls":3},"Stan kecil @",null,{"v":0,"d":"Rp0.00"},{"v":0,"d":"Rp0.00"}]
[null," ",{"$nulls":3},{"$f":"SUBTOTAL(109,PesertaPameranDanVendor[Estimasi Total])","v":{"v":0,"d":"Rp0.00"}},{"$f":"SUBTOTAL(109,PesertaPameranDanVendor[Total Aktual])","v":{"v":0,"d":"Rp0.00"}}]
["Label Penjualan item berada dalam sel di sebelah kanan.","Penjualan item"]
["Masukkan jumlah Estimasi item yang terjual, jumlah Aktual item yang terjual, dan tarif item dalam tabel yang dimulai dari sel di sebelah kanan. Estimasi Pendapatan dan Pendapatan Aktual dihitung secara otomatis.","Estimasi","Aktual","Tipe","Harga","Estimasi Total","Total Aktual"]
[{"$nulls":3},"Item @",null,{"$f":"B26*E26","v":{"v":0,"d":"Rp0.00"}},{"$f":"C26*E26","v":{"v":0,"d":"Rp0.00"}}]
[{"$nulls":3},"Item @",null,{"$f":"B27*E27","v":{"v":0,"d":"Rp0.00"}},{"$f":"C27*E27","v":{"v":0,"d":"Rp0.00"}}]
[{"$nulls":3},"Item @",null,{"v":0,"d":"Rp0.00"},{"v":0,"d":"Rp0.00"}]
[{"$nulls":3},"Item @",null,{"v":0,"d":"Rp0.00"},{"v":0,"d":"Rp0.00"}]
[null," ",{"$nulls":3},{"$f":"SUBTOTAL(109,PenjualanItem[Estimasi Total])","v":{"v":0,"d":"Rp0.00"}},{"$f":"SUBTOTAL(109,PenjualanItem[Total Aktual])","v":{"v":0,"d":"Rp0.00"}}]

{"sheet":"Ringkasan","index":3,"n_rows":9,"n_cols":4,"rows_kept":9,"merged":[[1,1,1,3],[2,2,2,3],[8,1,8,4],[9,1,9,3]]}
["Ringkasan Laba & Rugi serta Bagan yang memperlihatkan Total Pendapatan dan Pengeluaran diperbarui secara otomatis dalam lembar kerja ini. Instruksi bermanfaat tentang cara menggunakan lembar kerja ada pada sel-sel dalam kolom ini. Tekan panah bawah untuk memulai."]
["Nama Acara diperbarui secara otomatis dalam sel di sebelah kanan.",{"$f":"Pengeluaran!B2","v":"Anggaran Acara untuk \nNama Acara"}]
["Label Ringkasan Laba-Rugi berada dalam sel C3. Instruksi berikutnya berada dalam sel A5.",null,"Ringkasan Laba-Rugi"]
[]
["Tabel Total yang dimulai dari sel di sebelah kanan diperbarui secara otomatis. Instruksi berikutnya berada dalam sel A9.","Total","Estimasi","Aktual"]
[null,"Total pendapatan",{"$f":"Pendapatan!F5","v":{"v":1936,"d":"Rp1,936.00"}},{"$f":"Pendapatan!G5","v":{"v":1831,"d":"Rp1,831.00"}}]
[null,"Total pengeluaran",{"$f":"Pengeluaran!G5","v":{"v":1145,"d":"Rp1,145.00"}},{"$f":"Pengeluaran!H5","v":{"v":395,"d":"Rp395.00"}}]
[null,"Total laba (atau rugi)",{"$f":"C6-C7","v":{"v":791,"d":"Rp791.00"}},{"$f":"D6-D7","v":{"v":1436,"d":"Rp1,436.00"}}]
["Bagan kolom tergugus yang memperlihatkan perbandingan Estimasi dan Total Pendapatan Aktual serta Total Pengeluaran berada dalam sel di sebelah kanan.","Bagan kolom tergugus yang memperlihatkan perbandingan Estimasi dan Total Pendapatan Aktual serta Total Pengeluaran berada dalam sel ini."]